[Event "4NCL Div 2 2024-25"]
[Site "England"]
[Date "2025.04.05"]
[Round "7.11"]
[White "Maciol, Ryszard"]
[Black "Webb, Richard M"]
[Result "1/2-1/2"]
[Annotator "ChessBase"]
[ECO "D80"]
[WhiteElo "2125"]
[BlackElo "2172"]
[PlyCount "32"]
[EventDate "2024.11.23"]
[EventType "team-tourn"]
[EventCountry "ENG"]
[SourceTitle "playchess.com"]
[Source "ChessBase"]
[SourceQuality "1"]
[TimeControl "40/6000+30:3000+30"]

1. d4 {[%emt 0:10:08]} Nf6 {[%emt 0:10:06]} 2. c4 {[%emt 0:00:11]} g6 {[%emt 0:00:10]} 3. Nc3 {[%emt 0:00:04]} d5 {[%emt 0:00:03]} 4. Bg5 {[%emt 0:00:13]} Bg7 {[%emt 0:00:48]} 5. Bxf6 {[%emt 0:00:42]} Bxf6 {[%emt 0:00:05]} 6. cxd5 {[%emt 0:00:15]} c5 {[%emt 0:04:09]} 7. dxc5 {[%emt 0:03:01]} Nd7 {[%emt 0:00:51]} 8. e4 {[%emt 0:12:08]} Qa5 {[%emt 0:05:27]} 9. Qc2 {[%emt 0:03:54]} O-O {[%emt 0:00:23]} 10. Nf3 {[%emt 0:02:20]} Nxc5 {[%emt 0:01:35]} 11. Nd2 {[%emt 0:02:36]} Bd7 {[%emt 0:04:05]} 12. Be2 {[%emt 0:08:14]} Na4 {[%emt 0:33:26]} 13. Nc4 {[%emt 0:13:57]} Bxc3+ {[%emt 0:01:14]} 14. bxc3 {[%emt 0:00:07]} Qxc3+ {[%emt 0:00:04]} 15. Qxc3 {[%emt 0:02:08]} Nxc3 {[%emt 0:00:06]} 16. Ne5 {[%emt 0:03:15]} Bc8 {[%emt 0:45:58]} 1/2-1/2

[Event "4NCL Div 2 2024-25"]
[Site "England"]
[Date "2025.04.05"]
[Round "7.12"]
[White "Cooksey, Paul S"]
[Black "Horton, Jamie A"]
[Result "1/2-1/2"]
[Annotator "ChessBase"]
[ECO "D30"]
[WhiteElo "2234"]
[BlackElo "2163"]
[PlyCount "136"]
[EventDate "2024.11.23"]
[EventType "team-tourn"]
[EventCountry "ENG"]
[SourceTitle "playchess.com"]
[Source "ChessBase"]
[SourceQuality "1"]
[TimeControl "40/6000+30:3000+30"]

1. d4 {[%emt 0:10:06]} d5 {[%emt 0:10:31]} 2. c4 {[%emt 0:00:15]} e6 {[%emt 0:00:07]} 3. Nf3 {[%emt 0:00:05]} a6 {[%emt 0:00:47]} 4. Bg5 {[%emt 0:02:42]} Be7 {[%emt 0:00:14]} 5. Bxe7 {[%emt 0:01:14]} Qxe7 {[%emt 0:00:06]} 6. Nbd2 {[%emt 0:02:00]} Nf6 {[%emt 0:00:45]} 7. e3 {[%emt 0:04:23]} O-O {[%emt 0:01:37]} 8. Rc1 {[%emt 0:02:27]} Nbd7 {[%emt 0:01:51]} 9. cxd5 {[%emt 0:05:31]} e5 {[%emt 0:01:02]} 10. dxe5 {[%emt 0:11:57]} Nxe5 {[%emt 0:03:01]} 11. Nxe5 {[%emt 0:00:38]} Qxe5 {[%emt 0:00:07]} 12. Nc4 {[%emt 0:00:55]} Qxd5 {[%emt 0:00:50]} 13. Qxd5 {[%emt 0:00:23]} Nxd5 {[%emt 0:00:03]} 14. Be2 {[%emt 0:00:30]} Rb8 {[%emt 0:12:56]} 15. O-O {[%emt 0:04:25]} Be6 {[%emt 0:03:06]} 16. Rfd1 {[%emt 0:03:46]} c6 {[%emt 0:31:02]} 17. g3 {[%emt 0:06:44]} g5 {[%emt 0:13:12]} 18. a3 {[%emt 0:07:26]} Rfd8 {[%emt 0:05:24]} 19. Na5 {[%emt 0:06:34]} Rd7 {[%emt 0:08:56]} 20. Nb3 {[%emt 0:05:58]} Nf6 {[%emt 0:06:04]} 21. Rxd7 {[%emt 0:03:04]} Nxd7 {[%emt 0:03:44]} 22. Nd4 {[%emt 0:02:20]} Nf8 {[%emt 0:01:43]} 23. f3 {[%emt 0:05:35]} Kg7 {[%emt 0:00:45]} 24. Kf2 {[%emt 0:00:35]} h6 {[%emt 0:00:23]} 25. b4 {[%emt 0:02:01]} Kf6 {[%emt 0:00:40]} 26. e4 {[%emt 0:01:37]} Nd7 {[%emt 0:01:21]} 27. f4 {[%emt 0:02:07]} Nb6 {[%emt 0:02:42]} 28. Rd1 {[%emt 0:05:11]} Ra8 {[%emt 0:00:17]} 29. Ke3 {[%emt 0:02:02]} Ke7 {[%emt 0:00:59]} 30. Nxe6 {[%emt 0:01:58]} Kxe6 {[%emt 0:00:39]} 31. h4 {[%emt 0:02:01]} gxh4 {[%emt 0:00:21]} 32. gxh4 {[%emt 0:00:06]} Rg8 {[%emt 0:00:06]} 33. Kf3 {[%emt 0:00:33]} Ke7 {[%emt 0:01:00]} 34. e5 {[%emt 0:03:42]} Nd5 {[%emt 0:00:36]} 35. Bc4 {[%emt 0:00:28]} Rd8 {[%emt 0:00:30]} 36. Bxd5 {[%emt 0:00:57]} cxd5 {[%emt 0:00:15]} 37. Rc1 {[%emt 0:00:41]} f6 {[%emt 0:00:37]} 38. Rc7+ {[%emt 0:01:20]} Ke6 {[%emt 0:00:06]} 39. exf6 {[%emt 0:00:40]} d4 {[%emt 0:00:59]} 40. Ke2 {[%emt 0:00:53]} d3+ {[%emt 0:00:22]} 41. Kd2 {[%emt 0:50:12]} Kxf6 {[%emt 0:25:15]} 42. Rxb7 {[%emt 0:00:00]} Rd6 {[%emt 0:04:39]} 43. Rc7 {[%emt 0:00:00]} Kf5 {[%emt 0:02:16]} 44. Rc3 {[%emt 0:00:00]} Kg4 {[%emt 0:08:13]} 45. Rxd3 {[%emt 0:00:00]} Rb6 {[%emt 0:00:28]} 46. Ke3 {[%emt 0:00:00]} a5 {[%emt 0:08:48]} 47. Rb3 {[%emt 0:00:00]} Kxh4 {[%emt 0:02:31]} 48. Kf3 {[%emt 0:00:00]} Rg6 {[%emt 0:00:17]} 49. Kf2 {[%emt 0:00:00]} axb4 {[%emt 0:02:13]} 50. axb4 {[%emt 0:00:00]} Rg4 {[%emt 0:00:32]} 51. Rf3 {[%emt 0:00:00]} Rg6 {[%emt 0:00:12]} 52. b5 {[%emt 0:00:00]} Rb6 {[%emt 0:00:14]} 53. Rb3 {[%emt 0:00:00]} Kg4 {[%emt 0:00:04]} 54. Rb4 {[%emt 0:00:00]} h5 {[%emt 0:00:33]} 55. Kf1 {[%emt 0:00:00]} Kh4 {[%emt 0:01:23]} 56. Kg2 {[%emt 0:00:00]} Kg4 {[%emt 0:00:04]} 57. Kf2 {[%emt 0:00:00]} h4 {[%emt 0:00:08]} 58. Kg2 {[%emt 0:00:00]} h3+ {[%emt 0:00:23]} 59. Kf2 {[%emt 0:00:00]} Rh6 {[%emt 0:00:33]} 60. Kg1 {[%emt 0:00:00]} Rb6 {[%emt 0:00:07]} 61. Kh2 {[%emt 0:05:26]} Kh4 {[%emt 0:00:38]} 62. Rb3 {[%emt 0:00:56]} Kg4 {[%emt 0:00:13]} 63. f5 {[%emt 0:00:11]} Kxf5 {[%emt 0:00:08]} 64. Rxh3 {[%emt 0:00:05]} Ke5 {[%emt 0:00:15]} 65. Rh5+ {[%emt 0:00:12]} Kd4 {[%emt 0:00:09]} 66. Kg3 {[%emt 0:00:05]} Kc4 {[%emt 0:00:04]} 67. Kf3 {[%emt 0:00:04]} Rxb5 {[%emt 0:00:05]} 68. Rxb5 {[%emt 0:00:03]} Kxb5 {[%emt 0:00:01]} 1/2-1/2

[Event "4NCL Div 2 2024-25"]
[Site "England"]
[Date "2025.04.05"]
[Round "7.13"]
[White "Bryant, Harry"]
[Black "Thompson, Ian D"]
[Result "1/2-1/2"]
[Annotator "NA"]
[ECO "C11"]
[WhiteElo "2128"]
[BlackElo "2010"]
[PlyCount "53"]
[EventDate "2024.11.23"]
[EventType "team-tourn"]
[EventCountry "ENG"]
[SourceTitle "playchess.com"]
[Source "ChessBase"]
[SourceQuality "1"]
[TimeControl "40/6000+30:3000+30"]

1. e4 {[%emt 0:17:29]} e6 {[%emt 0:10:07]} 2. Nc3 {[%emt 0:00:55]} d5 {[%emt 0:00:30]} 3. Nf3 {[%emt 0:00:07]} Nf6 {[%emt 0:00:33]} 4. e5 {[%emt 0:00:57]} Nfd7 {[%emt 0:00:08]} 5. Ne2 {[%emt 0:00:07]} c5 {[%emt 0:01:11]} 6. c3 {[%emt 0:00:49]} Nc6 {[%emt 0:02:36]} 7. d4 {[%emt 0:01:19]} Be7 {[%emt 0:04:03]} 8. h4 {[%emt 0:00:48]} Qa5 {[%emt 0:06:57]} 9. Bd2 {[%emt 0:12:14]} Qb6 {[%emt 0:01:05]} 10. a3 {[%emt 0:12:02]} cxd4 {[%emt 0:06:11]} 11. cxd4 {[%emt 0:01:04]} f6 {[%emt 0:10:16]} 12. Nf4 {[%emt 0:13:10]} Nxd4 {[%emt 0:12:03]} 13. Nxd4 {[%emt 0:00:49]} Qxd4 {[%emt 0:00:07]} 14. Nxe6 {[%emt 0:01:37]} Qxe5+ {[%emt 0:00:14]} 15. Qe2 {[%emt 0:00:07]} Kf7 {[%emt 0:05:48]} 16. Qxe5 {[%emt 0:00:17]} Nxe5 {[%emt 0:00:24]} 17. Nc7 {[%emt 0:00:05]} Rb8 {[%emt 0:00:12]} 18. Nxd5 {[%emt 0:00:09]} Bc5 {[%emt 0:04:03]} 19. Be3 {[%emt 0:06:34]} Bxe3 {[%emt 0:06:00]} 20. Nxe3 {[%emt 0:00:12]} Be6 {[%emt 0:01:16]} 21. Be2 {[%emt 0:02:01]} Rhd8 {[%emt 0:01:36]} 22. Rc1 {[%emt 0:02:27]} Nd3+ {[%emt 0:06:07]} 23. Bxd3 {[%emt 0:00:07]} Rxd3 {[%emt 0:00:02]} 24. Ke2 {[%emt 0:02:28]} Rbd8 {[%emt 0:01:35]} 25. Rc7+ {[%emt 0:01:43]} R8d7 {[%emt 0:01:49]} 26. Rxd7+ {[%emt 0:00:20]} Rxd7 {[%emt 0:00:02]} 27. Rc1 {[%emt 0:00:41]} 1/2-1/2

[Event "4NCL Div 2 2024-25"]
[Site "England"]
[Date "2025.04.05"]
[Round "7.14"]
[White "Duckers, Harvey L"]
[Black "Lea, Daniel J"]
[Result "0-1"]
[Annotator "ChessBase"]
[ECO "A09"]
[WhiteElo "1900"]
[BlackElo "2006"]
[PlyCount "132"]
[EventDate "2024.11.23"]
[EventType "team-tourn"]
[EventCountry "ENG"]
[SourceTitle "playchess.com"]
[Source "ChessBase"]
[SourceQuality "1"]
[TimeControl "40/6000+30:3000+30"]

1. c4 {[%emt 1:41:00]} e6 {[%emt 1:41:00]} 2. Nf3 {[%emt 0:00:30]} d5 {[%emt 0:00:00]} 3. g3 {[%emt 0:00:00]} d4 {[%emt 0:00:00]} 4. Bg2 {[%emt 0:00:00]} c5 {[%emt 0:00:00]} 5. O-O {[%emt 0:00:00]} Nc6 {[%emt 0:00:00]} 6. d3 {[%emt 0:00:00]} Bd6 {[%emt 0:00:00]} 7. e3 {[%emt 0:00:00]} Nf6 {[%emt 0:00:00]} 8. exd4 {[%emt 0:00:00]} cxd4 {[%emt 0:00:00]} 9. a3 {[%emt 0:00:00]} a5 {[%emt 0:00:00]} 10. Nbd2 {[%emt 0:00:00]} O-O {[%emt 0:00:00]} 11. Re1 {[%emt 0:00:00]} h6 {[%emt 0:00:00]} 12. Rb1 {[%emt 0:00:00]} Re8 {[%emt 0:00:00]} 13. Qc2 {[%emt 0:00:00]} Qb6 {[%emt 0:00:00]} 14. h3 {[%emt 0:00:00]} e5 {[%emt 0:00:00]} 15. g4 {[%emt 0:00:00]} Be6 {[%emt 0:00:00]} 16. g5 {[%emt 0:00:00]} hxg5 {[%emt 0:00:00]} 17. Nxg5 {[%emt 0:00:00]} Bf5 {[%emt 0:00:00]} 18. Nde4 {[%emt 0:00:00]} Nxe4 {[%emt 0:08:30]} 19. Nxe4 {[%emt 0:00:00]} Be7 {[%emt 0:00:00]} 20. Bd2 {[%emt 0:00:00]} a4 {[%emt 0:00:00]} 21. Qd1 {[%emt 0:00:00]} Na5 {[%emt 0:00:00]} 22. Qf3 {[%emt 0:00:00]} Bg6 {[%emt 0:00:00]} 23. Bxa5 {[%emt 0:00:00]} Qxa5 {[%emt 0:00:00]} 24. Ng3 {[%emt 0:00:00]} Rab8 {[%emt 0:00:00]} 25. Rbd1 {[%emt 0:00:00]} Bf8 {[%emt 0:00:00]} 26. h4 {[%emt 0:00:00]} Qc7 {[%emt 0:00:00]} 27. h5 {[%emt 0:00:00]} Bh7 {[%emt 0:00:00]} 28. Qd5 {[%emt 0:00:00]} Re6 {[%emt 0:00:00]} 29. Re2 {[%emt 0:00:00]} Bc5 {[%emt 0:00:00]} 30. Bh3 {[%emt 0:00:00]} Re7 {[%emt 0:00:04]} 31. Bf5 {[%emt 0:00:00]} Rd8 {[%emt 0:01:56]} 32. Qe4 {[%emt 0:00:00]} Bxf5 {[%emt 0:00:16]} 33. Nxf5 {[%emt 0:00:00]} Re6 {[%emt 0:00:29]} 34. f3 {[%emt 0:00:00]} Bf8 {[%emt 0:01:21]} 35. Rg2 {[%emt 0:00:00]} Rf6 {[%emt 0:01:03]} 36. Rdd2 {[%emt 0:00:00]} Qd7 {[%emt 0:01:15]} 37. Ng3 {[%emt 0:00:00]} Qc6 {[%emt 0:01:27]} 38. Rdf2 {[%emt 0:00:49]} Qxe4 {[%emt 0:00:44]} 39. fxe4 {[%emt 0:00:18]} Rxf2 {[%emt 0:00:29]} 40. Kxf2 {[%emt 0:00:32]} g6 {[%emt 0:01:18]} 41. Kf3 {[%emt 0:53:05]} Rd6 {[%emt 0:23:41]} 42. Ke2 {[%emt 0:00:00]} Rf6 {[%emt 0:07:29]} 43. Nf5 {[%emt 0:00:00]} Kh7 {[%emt 0:02:02]} 44. hxg6+ {[%emt 0:00:00]} fxg6 {[%emt 0:00:18]} 45. Nh4 {[%emt 0:00:00]} Bh6 {[%emt 0:02:02]} 46. Nf3 {[%emt 0:00:00]} Bf4 {[%emt 0:07:51]} 47. Kd1 {[%emt 0:00:00]} Kh6 {[%emt 0:01:07]} 48. Rg1 {[%emt 0:00:00]} g5 {[%emt 0:01:31]} 49. Rh1+ {[%emt 0:00:00]} Kg7 {[%emt 0:00:38]} 50. Rg1 {[%emt 0:00:00]} Rg6 {[%emt 0:00:53]} 51. Rg4 {[%emt 0:00:00]} Kf6 {[%emt 0:00:41]} 52. Rg2 {[%emt 0:00:00]} Rh6 {[%emt 0:01:37]} 53. Kc2 {[%emt 0:00:00]} Rh3 {[%emt 0:01:50]} 54. Nd2 {[%emt 0:00:00]} Rh2 {[%emt 0:01:09]} 55. Rxh2 {[%emt 0:00:07]} Bxh2 {[%emt 0:00:04]} 56. Nf3 {[%emt 0:00:58]} Bf4 {[%emt 0:00:35]} 57. b3 {[%emt 0:00:26]} g4 {[%emt 0:00:32]} 58. Nh4 {[%emt 0:00:09]} axb3+ {[%emt 0:01:17]} 59. Kxb3 {[%emt 0:00:01]} Kg5 {[%emt 0:00:58]} 60. Nf5 {[%emt 0:03:56]} g3 {[%emt 0:00:35]} 61. Nxg3 {[%emt 0:00:02]} Bxg3 {[%emt 0:00:07]} 62. c5 {[%emt 0:00:05]} Kf4 {[%emt 0:00:41]} 63. Kc4 {[%emt 0:00:04]} Ke3 {[%emt 0:00:19]} 64. a4 {[%emt 0:01:19]} Be1 {[%emt 0:00:15]} 65. Kd5 {[%emt 0:00:15]} Kxd3 {[%emt 0:00:25]} 66. Kxe5 {[%emt 0:00:05]} Kc4 {[%emt 0:00:31]} 0-1

[Event "4NCL Div 2 2024-25"]
[Site "England"]
[Date "2025.04.05"]
[Round "7.15"]
[White "Serbanescu, Diana-Maria"]
[Black "Tart, Peter K"]
[Result "1-0"]
[Annotator "NA"]
[ECO "C42"]
[WhiteElo "1992"]
[BlackElo "1903"]
[PlyCount "37"]
[EventDate "2024.11.23"]
[EventType "team-tourn"]
[EventCountry "ENG"]
[SourceTitle "playchess.com"]
[Source "ChessBase"]
[SourceQuality "1"]
[TimeControl "40/6000+30:3000+30"]

1. e4 {[%emt 0:10:04]} e5 {[%emt 0:10:03]} 2. Nc3 {[%emt 0:00:10]} Nf6 {[%emt 0:00:20]} 3. Nf3 {[%emt 0:00:37]} Bb4 {[%emt 0:00:04]} 4. Nxe5 {[%emt 0:12:25]} O-O {[%emt 0:00:06]} 5. Be2 {[%emt 0:06:20]} Re8 {[%emt 0:05:16]} 6. Nd3 {[%emt 0:01:19]} Bxc3 {[%emt 0:00:06]} 7. dxc3 {[%emt 0:01:08]} Nxe4 {[%emt 0:00:18]} 8. O-O {[%emt 0:02:40]} d5 {[%emt 0:08:06]} 9. f3 {[%emt 0:08:33]} Nd6 {[%emt 0:00:34]} 10. Nf2 {[%emt 0:05:15]} c6 {[%emt 0:02:54]} 11. Bf4 {[%emt 0:08:44]} Bf5 {[%emt 0:03:51]} 12. Bd3 {[%emt 0:02:32]} Bxd3 {[%emt 0:01:49]} 13. cxd3 {[%emt 0:01:24]} Na6 {[%emt 0:11:24]} 14. Qd2 {[%emt 0:05:31]} Nc7 {[%emt 0:02:50]} 15. Rae1 {[%emt 0:02:00]} Qd7 {[%emt 0:03:45]} 16. Ng4 {[%emt 0:03:29]} f6 {[%emt 0:01:26]} 17. Qf2 {[%emt 0:02:49]} Ne6 {[%emt 0:01:52]} 18. Qg3 {[%emt 0:02:53]} Nf5 {[%emt 0:03:47]} 19. Nxf6+ {[%emt 0:00:16]} 1-0

[Event "4NCL Div 2 2024-25"]
[Site "England"]
[Date "2025.04.05"]
[Round "7.16"]
[White "Coates, Kenneth G"]
[Black "Skulte, Christopher"]
[Result "0-1"]
[Annotator "NA"]
[ECO "D00"]
[WhiteElo "1934"]
[BlackElo "2009"]
[PlyCount "62"]
[EventDate "2024.11.23"]
[EventType "team-tourn"]
[EventCountry "ENG"]
[SourceTitle "playchess.com"]
[Source "ChessBase"]
[SourceQuality "1"]
[TimeControl "40/6000+30:3000+30"]

1. d4 {[%emt 0:10:05]} Nf6 {[%emt 0:12:01]} 2. Nc3 {[%emt 0:00:12]} d5 {[%emt 0:00:59]} 3. Bf4 {[%emt 0:00:10]} e6 {[%emt 0:05:31]} 4. e3 {[%emt 0:00:35]} c5 {[%emt 0:00:55]} 5. Nb5 {[%emt 0:03:55]} Na6 {[%emt 0:00:26]} 6. c3 {[%emt 0:00:16]} Qb6 {[%emt 0:00:37]} 7. a4 {[%emt 0:01:32]} Bd7 {[%emt 0:07:23]} 8. Bd3 {[%emt 0:05:22]} c4 {[%emt 0:11:37]} 9. Bc2 {[%emt 0:00:21]} O-O-O {[%emt 0:07:16]} 10. Nf3 {[%emt 0:03:30]} Bxb5 {[%emt 0:06:11]} 11. axb5 {[%emt 0:00:25]} Qxb5 {[%emt 0:01:48]} 12. Ne5 {[%emt 0:04:42]} Qe8 {[%emt 0:07:58]} 13. O-O {[%emt 0:00:40]} Bd6 {[%emt 0:00:37]} 14. b3 {[%emt 0:07:19]} Bxe5 {[%emt 0:10:33]} 15. dxe5 {[%emt 0:06:44]} cxb3 {[%emt 0:07:23]} 16. Bd3 {[%emt 0:06:58]} Nd7 {[%emt 0:01:47]} 17. Bxa6 {[%emt 0:02:01]} bxa6 {[%emt 0:00:34]} 18. Qxb3 {[%emt 0:03:37]} Nc5 {[%emt 0:01:31]} 19. Qa3 {[%emt 0:03:11]} Qc6 {[%emt 0:00:20]} 20. e4 {[%emt 0:05:04]} Nxe4 {[%emt 0:02:53]} 21. Qxa6+ {[%emt 0:00:47]} Qxa6 {[%emt 0:00:15]} 22. Rxa6 {[%emt 0:00:05]} Rd7 {[%emt 0:05:06]} 23. Rfa1 {[%emt 0:04:09]} Nxc3 {[%emt 0:01:09]} 24. Rc6+ {[%emt 0:07:08]} Rc7 {[%emt 0:00:15]} 25. Rxc7+ {[%emt 0:00:22]} Kxc7 {[%emt 0:00:05]} 26. Rxa7+ {[%emt 0:00:08]} Kc6 {[%emt 0:00:38]} 27. Rxf7 {[%emt 0:00:12]} d4 {[%emt 0:01:07]} 28. f3 {[%emt 0:05:09]} Ra8 {[%emt 0:02:53]} 29. g4 {[%emt 0:03:26]} Ra2 {[%emt 0:01:52]} 30. Bg3 {[%emt 0:02:18]} d3 {[%emt 0:04:04]} 31. Rf8 {[%emt 0:06:27]} d2 {[%emt 0:00:25]} 0-1

[Event "4NCL Div 2 2024-25"]
[Site "England"]
[Date "2025.04.05"]
[Round "7.17"]
[White "Burnett, Andrew"]
[Black "Vaidyanathan, Adithya"]
[Result "1-0"]
[Annotator "ChessBase"]
[ECO "A57"]
[WhiteElo "2175"]
[BlackElo "1872"]
[PlyCount "125"]
[EventDate "2024.11.23"]
[EventType "team-tourn"]
[EventCountry "ENG"]
[SourceTitle "playchess.com"]
[Source "ChessBase"]
[SourceQuality "1"]
[TimeControl "40/6000+30:3000+30"]

1. d4 {[%emt 0:10:02]} Nf6 {[%emt 0:10:04]} 2. c4 {[%emt 0:00:08]} c5 {[%emt 0:00:02]} 3. d5 {[%emt 0:00:13]} b5 {[%emt 0:00:03]} 4. cxb5 {[%emt 0:00:17]} a6 {[%emt 0:00:03]} 5. g4 {[%emt 0:00:28]} Nxg4 {[%emt 0:09:56]} 6. e4 {[%emt 0:00:21]} d6 {[%emt 0:00:40]} 7. b6 {[%emt 0:00:08]} Qxb6 {[%emt 0:01:23]} 8. Bh3 {[%emt 0:00:14]} f5 {[%emt 0:02:45]} 9. exf5 {[%emt 0:00:45]} Bxf5 {[%emt 0:17:56]} 10. Nc3 {[%emt 0:01:06]} h5 {[%emt 0:00:20]} 11. f3 {[%emt 0:04:29]} Nh6 {[%emt 0:00:29]} 12. Bxh6 {[%emt 0:00:45]} Bxh3 {[%emt 0:01:06]} 13. Nxh3 {[%emt 0:00:44]} Rxh6 {[%emt 0:00:09]} 14. Qe2 {[%emt 0:03:36]} Qb4 {[%emt 0:04:31]} 15. O-O-O {[%emt 0:03:57]} Qh4 {[%emt 0:04:31]} 16. Qg2 {[%emt 0:08:18]} Nd7 {[%emt 0:12:43]} 17. Rhe1 {[%emt 0:05:49]} Ne5 {[%emt 0:13:50]} 18. Re4 {[%emt 0:03:17]} Rg6 {[%emt 0:02:21]} 19. Qf1 {[%emt 0:01:56]} Ng4 {[%emt 0:04:14]} 20. fxg4 {[%emt 0:00:25]} hxg4 {[%emt 0:00:46]} 21. Rf4 {[%emt 0:01:10]} Rf6 {[%emt 0:00:09]} 22. Rxf6 {[%emt 0:05:56]} gxf6 {[%emt 0:00:10]} 23. Nf2 {[%emt 0:01:14]} Bh6+ {[%emt 0:01:58]} 24. Kb1 {[%emt 0:00:12]} Be3 {[%emt 0:00:38]} 25. Nfe4 {[%emt 0:01:19]} Qh7 {[%emt 0:05:43]} 26. Qd3 {[%emt 0:01:07]} Qh6 {[%emt 0:03:35]} 27. Nxd6+ {[%emt 0:01:37]} exd6 {[%emt 0:00:12]} 28. Re1 {[%emt 0:00:19]} Kf7 {[%emt 0:00:19]} 29. Qxe3 {[%emt 0:00:57]} Qxe3 {[%emt 0:00:08]} 30. Rxe3 {[%emt 0:00:05]} Rh8 {[%emt 0:00:06]} 31. Ne4 {[%emt 0:00:45]} Rxh2 {[%emt 0:00:56]} 32. Nxd6+ {[%emt 0:00:12]} Kg6 {[%emt 0:00:06]} 33. Nc4 {[%emt 0:00:55]} Rh3 {[%emt 0:02:59]} 34. d6 {[%emt 0:01:55]} g3 {[%emt 0:01:10]} 35. Re8 {[%emt 0:03:20]} Rh7 {[%emt 0:10:11]} 36. Rg8+ {[%emt 0:01:16]} Rg7 {[%emt 0:00:01]} 37. Rxg7+ {[%emt 0:00:38]} Kxg7 {[%emt 0:00:02]} 38. Ne3 {[%emt 0:03:44]} Kf7 {[%emt 0:00:06]} 39. d7 {[%emt 0:00:09]} Ke7 {[%emt 0:00:25]} 40. Nf5+ {[%emt 0:00:07]} Kxd7 {[%emt 0:00:05]} 41. Nxg3 {[%emt 0:50:05]} Ke6 {[%emt 0:50:46]} 42. Kc2 {[%emt 0:00:09]} f5 {[%emt 0:00:06]} 43. Kd3 {[%emt 0:00:26]} f4 {[%emt 0:00:30]} 44. Nf1 {[%emt 0:01:10]} Kf5 {[%emt 0:01:51]} 45. Nd2 {[%emt 0:00:09]} Ke5 {[%emt 0:00:00]} 46. Kc4 {[%emt 0:00:00]} Kd6 {[%emt 0:00:00]} 47. Ne4+ {[%emt 0:00:00]} Ke5 {[%emt 0:00:00]} 48. Nxc5 {[%emt 0:00:00]} f3 {[%emt 0:00:00]} 49. b4 {[%emt 0:00:00]} Kf4 {[%emt 0:00:00]} 50. a4 {[%emt 0:00:00]} Ke5 {[%emt 0:00:00]} 51. Nd3+ {[%emt 0:00:00]} Kd6 {[%emt 0:00:00]} 52. Kd4 {[%emt 0:00:00]} Kc7 {[%emt 0:00:00]} 53. Kc5 {[%emt 0:00:00]} Kb7 {[%emt 0:00:00]} 54. Nf2 {[%emt 0:00:00]} Kc7 {[%emt 0:00:00]} 55. b5 {[%emt 0:00:00]} axb5 {[%emt 0:00:00]} 56. axb5 {[%emt 0:00:00]} Kb7 {[%emt 0:00:00]} 57. b6 {[%emt 0:00:00]} Kb8 {[%emt 0:00:00]} 58. Kc6 {[%emt 0:00:00]} Kc8 {[%emt 0:00:00]} 59. b7+ {[%emt 0:00:00]} Kb8 {[%emt 0:00:00]} 60. Ne4 {[%emt 0:00:00]} f2 {[%emt 0:00:00]} 61. Nc5 {[%emt 0:00:00]} Ka7 {[%emt 0:00:00]} 62. Kc7 {[%emt 0:00:00]} f1=Q {[%emt 0:00:00]} 63. b8=Q# {[%emt 0:00:00]} 1-0

[Event "4NCL Div 2 2024-25"]
[Site "England"]
[Date "2025.04.05"]
[Round "7.18"]
[White "Talsma, Paul"]
[Black "Larchikov, Maksym"]
[Result "1/2-1/2"]
[Annotator "NA"]
[ECO "D54"]
[WhiteElo "2083"]
[BlackElo "2050"]
[PlyCount "77"]
[EventDate "2024.11.23"]
[EventType "team-tourn"]
[EventCountry "ENG"]
[SourceTitle "playchess.com"]
[Source "ChessBase"]
[SourceQuality "1"]
[TimeControl "40/6000+30:3000+30"]

1. d4 {[%emt 0:10:06]} d5 {[%emt 0:10:12]} 2. c4 {[%emt 0:00:09]} e6 {[%emt 0:00:13]} 3. Nc3 {[%emt 0:00:09]} Nf6 {[%emt 0:00:37]} 4. Bg5 {[%emt 0:00:15]} Be7 {[%emt 0:00:17]} 5. e3 {[%emt 0:00:17]} O-O {[%emt 0:00:22]} 6. Rc1 {[%emt 0:00:11]} h6 {[%emt 0:00:34]} 7. Bh4 {[%emt 0:00:13]} Ne4 {[%emt 0:01:50]} 8. Bxe7 {[%emt 0:00:22]} Qxe7 {[%emt 0:00:25]} 9. cxd5 {[%emt 0:00:21]} Nxc3 {[%emt 0:00:20]} 10. Rxc3 {[%emt 0:00:14]} exd5 {[%emt 0:00:17]} 11. Bd3 {[%emt 0:00:40]} c6 {[%emt 0:00:28]} 12. Ne2 {[%emt 0:02:06]} Nd7 {[%emt 0:01:19]} 13. Bb1 {[%emt 0:04:05]} Nf6 {[%emt 0:01:50]} 14. f3 {[%emt 0:01:09]} Re8 {[%emt 0:10:12]} 15. O-O {[%emt 0:01:05]} Bd7 {[%emt 0:07:27]} 16. Ng3 {[%emt 0:01:15]} a5 {[%emt 0:06:31]} 17. e4 {[%emt 0:08:05]} dxe4 {[%emt 0:14:25]} 18. fxe4 {[%emt 0:00:18]} Rad8 {[%emt 0:03:15]} 19. e5 {[%emt 0:28:21]} Nd5 {[%emt 0:12:05]} 20. Rcf3 {[%emt 0:11:00]} Rf8 {[%emt 0:04:31]} 21. Qc2 {[%emt 0:10:52]} g6 {[%emt 0:00:14]} 22. Qd2 {[%emt 0:00:55]} Qh4 {[%emt 0:12:29]} 23. Ne4 {[%emt 0:00:56]} b6 {[%emt 0:00:51]} 24. Nd6 {[%emt 0:04:50]} Be6 {[%emt 0:00:55]} 25. a3 {[%emt 0:04:07]} Kg7 {[%emt 0:10:26]} 26. Rg3 {[%emt 0:02:19]} Ne7 {[%emt 0:01:22]} 27. Qf2 {[%emt 0:00:43]} f5 {[%emt 0:02:19]} 28. d5 {[%emt 0:10:53]} f4 {[%emt 0:01:34]} 29. Rc3 {[%emt 0:01:15]} Qxf2+ {[%emt 0:00:07]} 30. Rxf2 {[%emt 0:00:06]} Bxd5 {[%emt 0:00:24]} 31. b4 {[%emt 0:00:17]} axb4 {[%emt 0:00:52]} 32. axb4 {[%emt 0:00:02]} Nc8 {[%emt 0:01:46]} 33. Nxc8 {[%emt 0:01:12]} Rxc8 {[%emt 0:00:01]} 34. Ba2 {[%emt 0:00:21]} Rfd8 {[%emt 0:02:23]} 35. Rd2 {[%emt 0:03:18]} Bxa2 {[%emt 0:00:30]} 36. Rxa2 {[%emt 0:00:02]} Re8 {[%emt 0:03:55]} 37. Ra7+ {[%emt 0:00:36]} Kg8 {[%emt 0:00:07]} 38. Rb7 {[%emt 0:00:33]} c5 {[%emt 0:01:24]} 39. Rxb6 {[%emt 0:02:33]} 1/2-1/2